Workbook

Sheet gminy
A1: PLANOWANA DLA GMIN NA 2023 R. KWOTA SUBWENCJI OGÓLNEJ, WPŁAT, DOCHODÓW Z PIT I CIT
L3: w złotych
F4: Subwencja ogólna na 2023 r. | J4: Wpłaty na część równoważącą | K4: Planowane udziały w podatku PIT na 2023 r. (38,40%) | L4: Planowane udziały w podatki CIT na 2023 r. (6,71%)
A5: Kod gminy | D5: Typ i nazwa gminy | G5: z tego:
G6: Część oświatowa | H6: Część wyrównawcza | I6: Część równoważąca
A9: WK | B9: PK | C9: GK | D9: GT | E9: GNAZWA | F9: razem | G9: SUB_OSW | H9: WYRÓWNAWCZA pomn o 150%G | I9: SUMA_ROW | J9: WPLATA_G | K9: P_UDZIAL18 | L9: P_UDZIAL18
A10: 02 | B10: 01 | C10: 01 | D10: 1 | E10: BOLESŁAWIEC | F10: =G10+H10+I10 -> 33758551 | G10: 33758551 | H10: 0 | I10: 0 | J10: 0 | K10: 38677497 | L10: 23909163
A11: 02 | B11: 01 | C11: 02 | D11: 2 | E11: BOLESŁAWIEC | F11: =G11+H11+I11 -> 16699590 | G11: 13415988 | H11: 3283602 | I11: 0 | J11: 0 | K11: 13372915 | L11: 342609
A12: 02 | B12: 01 | C12: 03 | D12: 2 | E12: GROMADKA | F12: 4531623 | G12: 4531623 | H12: 0 | I12: 0 | J12: 306329 | K12: 3339465 | L12: 492346
A13: 02 | B13: 01 | C13: 04 | D13: 3 | E13: NOWOGRODZIEC | F13: 17851300 | G13: 15888659 | H13: 1707447 | I13: 255194 | J13: 0 | K13: 8403859 | L13: 813347
A14: 02 | B14: 01 | C14: 05 | D14: 2 | E14: OSIECZNICA | F14: 10555595 | G14: 8118561 | H14: 2394848 | I14: 42186 | J14: 0 | K14: 5555723 | L14: 406646
A15: 02 | B15: 01 | C15: 06 | D15: 2 | E15: WARTA BOLESŁAWIECKA | F15: 12305223 | G15: 10651995 | H15: 1653228 | I15: 0 | J15: 0 | K15: 5778128 | L15: 67141
A16: 02 | B16: 02 | C16: 01 | D16: 1 | E16: BIELAWA | F16: 42282487 | G16: 24870177 | H16: 17395355 | I16: 16955 | J16: 0 | K16: 22075196 | L16: 1470250
A17: 02 | B17: 02 | C17: 02 | D17: 1 | E17: DZIERŻONIÓW | F17: =G17+H17+I17 -> 33133703 | G17: 26978958 | H17: 5809937 | I17: 344808 | J17: 0 | K17: 27364736 | L17: 4015694
A18: 02 | B18: 02 | C18: 03 | D18: 3 | E18: PIESZYCE | F18: 10762801 | G18: 6757994 | H18: 3869443 | I18: 135364 | J18: 0 | K18: 6979546 | L18: 541958
A19: 02 | B19: 02 | C19: 04 | D19: 1 | E19: PIŁAWA GÓRNA | F19: 7056061 | G19: 3724793 | H19: 3331268 | I19: 0 | J19: 0 | K19: 3336792 | L19: 511586
A20: 02 | B20: 02 | C20: 05 | D20: 2 | E20: DZIERŻONIÓW | F20: 12212385 | G20: 7640820 | H20: 4571565 | I20: 0 | J20: 0 | K20: 6391138 | L20: 66326
A21: 02 | B21: 02 | C21: 06 | D21: 2 | E21: ŁAGIEWNIKI | F21: 12508422 | G21: 7754647 | H21: 4753775 | I21: 0 | J21: 0 | K21: 4809702 | L21: 180753
A22: 02 | B22: 02 | C22: 07 | D22: 3 | E22: NIEMCZA | F22: 6907271 | G22: 4858708 | H22: 2023504 | I22: 25059 | J22: 0 | K22: 4822533 | L22: 101127
A23: 02 | B23: 03 | C23: 01 | D23: 1 | E23: GŁOGÓW | F23: 54522373 | G23: 54522373 | H23: 0 | I23: 0 | J23: 0 | K23: 77068661 | L23: 17370306
A24: 02 | B24: 03 | C24: 02 | D24: 2 | E24: GŁOGÓW | F24: 6691726 | G24: 5827437 | H24: 864289 | I24: 0 | J24: 0 | K24: 8970250 | L24: 284322
A25: 02 | B25: 03 | C25: 03 | D25: 2 | E25: JERZMANOWA | F25: 5590599 | G25: 5590599 | H25: 0 | I25: 0 | J25: 5632462 | K25: 8779046 | L25: 40067
A26: 02 | B26: 03 | C26: 04 | D26: 2 | E26: KOTLA | F26: 6818842 | G26: 4339790 | H26: 2479052 | I26: 0 | J26: 0 | K26: 3391907 | L26: 55219
A27: 02 | B27: 03 | C27: 05 | D27: 2 | E27: PĘCŁAW | F27: 3682061 | G27: 1992452 | H27: 1689609 | I27: 0 | J27: 0 | K27: 1311385 | L27: 15345
A28: 02 | B28: 03 | C28: 06 | D28: 2 | E28: ŻUKOWICE | F28: 4323149 | G28: 3551340 | H28: 771809 | I28: 0 | J28: 0 | K28: 2186492 | L28: 32184
A29: 02 | B29: 04 | C29: 01 | D29: 3 | E29: GÓRA | F29: 26518513 | G29: 15736962 | H29: 10544626 | I29: 236925 | J29: 0 | K29: 12287176 | L29: 1255708
A30: 02 | B30: 04 | C30: 02 | D30: 2 | E30: JEMIELNO | F30: 6468691 | G30: 3241584 | H30: 3077589 | I30: 149518 | J30: 0 | K30: 1151195 | L30: 17813
A31: 02 | B31: 04 | C31: 03 | D31: 2 | E31: NIECHLÓW | F31: 7878919 | G31: 4249733 | H31: 3573397 | I31: 55789 | J31: 0 | K31: 2190771 | L31: 179403
A32: 02 | B32: 04 | C32: 04 | D32: 3 | E32: WĄSOSZ | F32: 9694942 | G32: 6580774 | H32: 2985398 | I32: 128770 | J32: 0 | K32: 4437768 | L32: 172529
A33: 02 | B33: 05 | C33: 01 | D33: 1 | E33: JAWOR | F33: 16219507 | G33: 16219507 | H33: 0 | I33: 0 | J33: 0 | K33: 18891839 | L33: 7074359
A34: 02 | B34: 05 | C34: 02 | D34: 3 | E34: BOLKÓW | F34: 17750439 | G34: 9149844 | H34: 8249454 | I34: 351141 | J34: 0 | K34: 5694475 | L34: 146134
A35: 02 | B35: 05 | C35: 03 | D35: 2 | E35: MĘCINKA | F35: 5592073 | G35: 4209437 | H35: 1382636 | I35: 0 | J35: 0 | K35: 3390377 | L35: 158516
A36: 02 | B36: 05 | C36: 04 | D36: 2 | E36: MŚCIWOJÓW | F36: 5084871 | G36: 3625732 | H36: 1459139 | I36: 0 | J36: 0 | K36: 2586355 | L36: 93785
A37: 02 | B37: 05 | C37: 05 | D37: 2 | E37: PASZOWICE | F37: 6266227 | G37: 3613474 | H37: 2652753 | I37: 0 | J37: 0 | K37: 2549108 | L37: 48703
A38: 02 | B38: 05 | C38: 06 | D38: 2 | E38: WĄDROŻE WIELKIE | F38: 6212303 | G38: 4084753 | H38: 2127550 | I38: 0 | J38: 0 | K38: 2854493 | L38: 40634
A39: 02 | B39: 06 | C39: 01 | D39: 1 | E39: KARPACZ | F39: 4981669 | G39: 4973634 | H39: 0 | I39: 8035 | J39: 2038013 | K39: 4736672 | L39: 495309
A40: 02 | B40: 06 | C40: 02 | D40: 1 | E40: KOWARY | F40: 10201829 | G40: 7453486 | H40: 2537041 | I40: 211302 | J40: 0 | K40: 7463928 | L40: 686101
A41: 02 | B41: 06 | C41: 03 | D41: 1 | E41: PIECHOWICE | F41: 3172532 | G41: 3172532 | H41: 0 | I41: 0 | J41: 0 | K41: 5284239 | L41: 144428
A42: 02 | B42: 06 | C42: 04 | D42: 1 | E42: SZKLARSKA PORĘBA | F42: 4136976 | G42: 3420078 | H42: 716898 | I42: 0 | J42: 0 | K42: 5084126 | L42: 368284
A43: 02 | B43: 06 | C43: 05 | D43: 2 | E43: JANOWICE WIELKIE | F43: 6094511 | G43: 3461132 | H43: 2626965 | I43: 6414 | J43: 0 | K43: 2955039 | L43: 147501
A44: 02 | B44: 06 | C44: 06 | D44: 2 | E44: JEŻÓW SUDECKI | F44: 7518364 | G44: 5912426 | H44: 1605938 | I44: 0 | J44: 0 | K44: 9712193 | L44: 70616
A45: 02 | B45: 06 | C45: 07 | D45: 2 | E45: MYSŁAKOWICE | F45: 11542542 | G45: 9289025 | H45: 2253517 | I45: 0 | J45: 0 | K45: 8143248 | L45: 326518
A46: 02 | B46: 06 | C46: 08 | D46: 2 | E46: PODGÓRZYN | F46: 10128396 | G46: 9554614 | H46: 573782 | I46: 0 | J46: 0 | K46: 7175917 | L46: 241392
A47: 02 | B47: 06 | C47: 09 | D47: 2 | E47: STARA KAMIENICA | F47: 8050695 | G47: 6827194 | H47: 1223501 | I47: 0 | J47: 0 | K47: 3270569 | L47: 120550
A48: 02 | B48: 07 | C48: 01 | D48: 1 | E48: KAMIENNA GÓRA | F48: 22741495 | G48: 13434579 | H48: 9262240 | I48: 44676 | J48: 0 | K48: 13271443 | L48: 1230072
A49: 02 | B49: 07 | C49: 02 | D49: 2 | E49: KAMIENNA GÓRA | F49: 14964260 | G49: 9354020 | H49: 5600307 | I49: 9933 | J49: 0 | K49: 6621983 | L49: 619160
A50: 02 | B50: 07 | C50: 03 | D50: 3 | E50: LUBAWKA | F50: 15491161 | G50: 8196874 | H50: 7036807 | I50: 257480 | J50: 0 | K50: 6667534 | L50: 505367
A51: 02 | B51: 07 | C51: 04 | D51: 2 | E51: MARCISZÓW | F51: 8951480 | G51: 3750881 | H51: 5054199 | I51: 146400 | J51: 0 | K51: 2394399 | L51: 34487
A52: 02 | B52: 08 | C52: 01 | D52: 1 | E52: DUSZNIKI-ZDRÓJ | F52: 5274887 | G52: 5210558 | H52: 0 | I52: 64329 | J52: 0 | K52: 3461898 | L52: 236674
A53: 02 | B53: 08 | C53: 02 | D53: 1 | E53: KŁODZKO | F53: 29370526 | G53: 22302130 | H53: 7068396 | I53: 0 | J53: 0 | K53: 21627653 | L53: 2042659
A54: 02 | B54: 08 | C54: 03 | D54: 1 | E54: KUDOWA-ZDRÓJ | F54: 14147898 | G54: 10000086 | H54: 4116281 | I54: 31531 | J54: 0 | K54: 6066441 | L54: 427974
A55: 02 | B55: 08 | C55: 04 | D55: 1 | E55: NOWA RUDA | F55: 20667717 | G55: 10837589 | H55: 9726592 | I55: 103536 | J55: 0 | K55: 16346652 | L55: 1326528
A56: 02 | B56: 08 | C56: 05 | D56: 1 | E56: POLANICA-ZDRÓJ | F56: 3843740 | G56: 3840990 | H56: 0 | I56: 2750 | J56: 0 | K56: 5738896 | L56: 218456
A57: 02 | B57: 08 | C57: 06 | D57: 3 | E57: BYSTRZYCA KŁODZKA | F57: 33173676 | G57: 20046059 | H57: 12380697 | I57: 746920 | J57: 0 | K57: 11226125 | L57: 1007197
A58: 02 | B58: 08 | C58: 07 | D58: 2 | E58: KŁODZKO | F58: 24911880 | G58: 16088290 | H58: 8785147 | I58: 38443 | J58: 0 | K58: 11532375 | L58: 291295
A59: 02 | B59: 08 | C59: 08 | D59: 3 | E59: LĄDEK-ZDRÓJ | F59: 10231323 | G59: 5042777 | H59: 5079149 | I59: 109397 | J59: 0 | K59: 5035174 | L59: 145913
A60: 02 | B60: 08 | C60: 09 | D60: 2 | E60: LEWIN KŁODZKI | F60: 3915366 | G60: 2085909 | H60: 1678740 | I60: 150717 | J60: 0 | K60: 805287 | L60: 4606
A61: 02 | B61: 08 | C61: 10 | D61: 3 | E61: MIĘDZYLESIE | F61: 13761239 | G61: 6440905 | H61: 7047024 | I61: 273310 | J61: 0 | K61: 3702436 | L61: 75910
A62: 02 | B62: 08 | C62: 11 | D62: 2 | E62: NOWA RUDA | F62: 22502002 | G62: 13664562 | H62: 8770753 | I62: 66687 | J62: 0 | K62: 7087545 | L62: 194334
A63: 02 | B63: 08 | C63: 12 | D63: 3 | E63: RADKÓW | F63: 13180117 | G63: 8733372 | H63: 4010790 | I63: 435955 | J63: 0 | K63: 5048776 | L63: 619964
A64: 02 | B64: 08 | C64: 13 | D64: 3 | E64: STRONIE ŚLĄSKIE | F64: 8163996 | G64: 4178971 | H64: 3800742 | I64: 184283 | J64: 0 | K64: 4140665 | L64: 304051
A65: 02 | B65: 08 | C65: 14 | D65: 3 | E65: SZCZYTNA | F65: 10562859 | G65: 4332631 | H65: 6230228 | I65: 0 | J65: 0 | K65: 4279598 | L65: 72983
A66: 02 | B66: 09 | C66: 01 | D66: 1 | E66: CHOJNÓW | F66: 14971455 | G66: 10574379 | H66: 4309573 | I66: 87503 | J66: 0 | K66: 10504799 | L66: 1262563
A67: 02 | B67: 09 | C67: 02 | D67: 2 | E67: CHOJNÓW | F67: 11368525 | G67: 8966439 | H67: 2402086 | I67: 0 | J67: 0 | K67: 7341728 | L67: 289240
A68: 02 | B68: 09 | C68: 03 | D68: 2 | E68: KROTOSZYCE | F68: 3815536 | G68: 3060186 | H68: 755350 | I68: 0 | J68: 0 | K68: 2857298 | L68: 179760
A69: 02 | B69: 09 | C69: 04 | D69: 2 | E69: KUNICE | F69: 8982294 | G69: 8004788 | H69: 977506 | I69: 0 | J69: 0 | K69: 9961447 | L69: 1327770
A70: 02 | B70: 09 | C70: 05 | D70: 2 | E70: LEGNICKIE POLE | F70: 4067450 | G70: 4067450 | H70: 0 | I70: 0 | J70: 1006375 | K70: 5478097 | L70: 1171901
A71: 02 | B71: 09 | C71: 06 | D71: 2 | E71: MIŁKOWICE | F71: 6853498 | G71: 5939368 | H71: 914130 | I71: 0 | J71: 0 | K71: 6145705 | L71: 387415
A72: 02 | B72: 09 | C72: 07 | D72: 3 | E72: PROCHOWICE | F72: 8099280 | G72: 6940892 | H72: 1158388 | I72: 0 | J72: 0 | K72: 5213126 | L72: 720784
A73: 02 | B73: 09 | C73: 08 | D73: 2 | E73: RUJA | F73: 3823775 | G73: 1997681 | H73: 1826094 | I73: 0 | J73: 0 | K73: 1344667 | L73: 2589
A74: 02 | B74: 10 | C74: 01 | D74: 1 | E74: LUBAŃ | F74: 20864563 | G74: 15935401 | H74: 4929162 | I74: 0 | J74: 0 | K74: 18057596 | L74: 1010973
A75: 02 | B75: 10 | C75: 02 | D75: 1 | E75: ŚWIERADÓW-ZDRÓJ | F75: =G75+H75+I75 -> 5656295 | G75: 5606470 | H75: 0 | I75: 49825 | J75: 0 | K75: 2879817 | L75: 208483
A76: 02 | B76: 10 | C76: 03 | D76: 3 | E76: LEŚNA | F76: 17605837 | G76: 8466870 | H76: 8557708 | I76: 581259 | J76: 0 | K76: 4833589 | L76: 144147
A77: 02 | B77: 10 | C77: 04 | D77: 2 | E77: LUBAŃ | F77: 10481091 | G77: 6654085 | H77: 3827006 | I77: 0 | J77: 0 | K77: 4758686 | L77: 82669
A78: 02 | B78: 10 | C78: 05 | D78: 3 | E78: OLSZYNA | F78: 8714563 | G78: 6299972 | H78: 2414591 | I78: 0 | J78: 0 | K78: 4509551 | L78: 142453
A79: 02 | B79: 10 | C79: 06 | D79: 2 | E79: PLATERÓWKA | F79: 1798903 | G79: 1354401 | H79: 444502 | I79: 0 | J79: 0 | K79: 964238 | L79: 8772
A80: 02 | B80: 10 | C80: 07 | D80: 2 | E80: SIEKIERCZYN | F80: 7521437 | G80: 4345132 | H80: 3176305 | I80: 0 | J80: 0 | K80: 3213900 | L80: 45435
A81: 02 | B81: 11 | C81: 01 | D81: 1 | E81: LUBIN | F81: 67889718 | G81: 67889718 | H81: 0 | I81: 0 | J81: 0 | K81: 101639327 | L81: 35287582
A82: 02 | B82: 11 | C82: 02 | D82: 2 | E82: LUBIN | F82: 10909619 | G82: 10909619 | H82: 0 | I82: 0 | J82: 2028210 | K82: 28515193 | L82: 522971
A83: 02 | B83: 11 | C83: 03 | D83: 2 | E83: RUDNA | F83: 7889663 | G83: 7889663 | H83: 0 | I83: 0 | J83: 4802105 | K83: 8126056 | L83: 2364116
A84: 02 | B84: 11 | C84: 04 | D84: 3 | E84: ŚCINAWA | F84: 12880508 | G84: 7342930 | H84: 5500538 | I84: 37040 | J84: 0 | K84: 7941097 | L84: 374137
A85: 02 | B85: 12 | C85: 01 | D85: 3 | E85: GRYFÓW ŚLĄSKI | F85: 11011632 | G85: 5498697 | H85: 5409519 | I85: 103416 | J85: 0 | K85: 6465147 | L85: 277560
A86: 02 | B86: 12 | C86: 02 | D86: 3 | E86: LUBOMIERZ | F86: 16636789 | G86: 9404230 | H86: 6794166 | I86: 438393 | J86: 0 | K86: 2553670 | L86: 16603
A87: 02 | B87: 12 | C87: 03 | D87: 3 | E87: LWÓWEK ŚLĄSKI | F87: 18621925 | G87: 11515268 | H87: 7106657 | I87: 0 | J87: 0 | K87: 11807914 | L87: 1204382
A88: 02 | B88: 12 | C88: 04 | D88: 3 | E88: MIRSK | F88: 14801557 | G88: 6746501 | H88: 7582265 | I88: 472791 | J88: 0 | K88: 4313715 | L88: 195223
A89: 02 | B89: 12 | C89: 05 | D89: 3 | E89: WLEŃ | F89: 7162219 | G89: 3270147 | H89: 3830631 | I89: 61441 | J89: 0 | K89: 2092329 | L89: 28871
A90: 02 | B90: 13 | C90: 01 | D90: 2 | E90: CIESZKÓW | F90: 8150881 | G90: 4863347 | H90: 3287534 | I90: 0 | J90: 0 | K90: 3239268 | L90: 22218
A91: 02 | B91: 13 | C91: 02 | D91: 2 | E91: KROŚNICE | F91: 9702610 | G91: 7761701 | H91: 1940909 | I91: 0 | J91: 0 | K91: 5891157 | L91: 206470
A92: 02 | B92: 13 | C92: 03 | D92: 3 | E92: MILICZ | F92: 39356767 | G92: 30273845 | H92: 9082922 | I92: 0 | J92: 0 | K92: 19822081 | L92: 1051287
A93: 02 | B93: 14 | C93: 01 | D93: 1 | E93: OLEŚNICA | F93: 37507507 | G93: 33918075 | H93: 3589432 | I93: 0 | J93: 0 | K93: 38405177 | L93: 6841938
A94: 02 | B94: 14 | C94: 02 | D94: 3 | E94: BIERUTÓW | F94: 16201318 | G94: 9228068 | H94: 6902956 | I94: 70294 | J94: 0 | K94: 6329677 | L94: 307979
A95: 02 | B95: 14 | C95: 03 | D95: 2 | E95: DOBROSZYCE | F95: 10314001 | G95: 8807646 | H95: 1506355 | I95: 0 | J95: 0 | K95: 5739887 | L95: 197233
A96: 02 | B96: 14 | C96: 04 | D96: 2 | E96: DZIADOWA KŁODA | F96: 9308891 | G96: 5140277 | H96: 4075977 | I96: 92637 | J96: 0 | K96: 2479251 | L96: 204724
A97: 02 | B97: 14 | C97: 05 | D97: 3 | E97: MIĘDZYBÓRZ | F97: 8335623 | G97: 6206118 | H97: 1981288 | I97: 148217 | J97: 0 | K97: 3589804 | L97: 78166
A98: 02 | B98: 14 | C98: 06 | D98: 2 | E98: OLEŚNICA | F98: 14261041 | G98: 11438977 | H98: 2822064 | I98: 0 | J98: 0 | K98: 15210783 | L98: 253309
A99: 02 | B99: 14 | C99: 07 | D99: 3 | E99: SYCÓW | F99: 19691297 | G99: 15866069 | H99: 3733172 | I99: 92056 | J99: 0 | K99: 13614856 | L99: 1504218
A100: 02 | B100: 14 | C100: 08 | D100: 3 | E100: TWARDOGÓRA | F100: 12295184 | G100: 10171805 | H100: 1828093 | I100: 295286 | J100: 0 | K100: 14406637 | L100: 837422
A101: 02 | B101: 15 | C101: 01 | D101: 1 | E101: OŁAWA | F101: 29298604 | G101: 29257028 | H101: 0 | I101: 41576 | J101: 0 | K101: 38879896 | L101: 4578990
A102: 02 | B102: 15 | C102: 02 | D102: 2 | E102: DOMANIÓW | F102: 10982578 | G102: 8561092 | H102: 2421486 | I102: 0 | J102: 0 | K102: 3299917 | L102: 48788
A103: 02 | B103: 15 | C103: 03 | D103: 3 | E103: JELCZ-LASKOWICE | F103: 23888149 | G103: 23801559 | H103: 0 | I103: 86590 | J103: 0 | K103: 25920591 | L103: 5689202
A104: 02 | B104: 15 | C104: 04 | D104: 2 | E104: OŁAWA | F104: 18616612 | G104: 15902388 | H104: 2714224 | I104: 0 | J104: 0 | K104: 18833575 | L104: 3123996
A105: 02 | B105: 16 | C105: 01 | D105: 3 | E105: CHOCIANÓW | F105: 16325691 | G105: 10266233 | H105: 5812824 | I105: 246634 | J105: 0 | K105: 12570872 | L105: 217695
A106: 02 | B106: 16 | C106: 02 | D106: 2 | E106: GAWORZYCE | F106: 6400905 | G106: 3729016 | H106: 2671889 | I106: 0 | J106: 0 | K106: 2942346 | L106: 81510
A107: 02 | B107: 16 | C107: 03 | D107: 2 | E107: GRĘBOCICE | F107: 5320298 | G107: 5320298 | H107: 0 | I107: 0 | J107: 3676338 | K107: 4116784 | L107: 98078
A108: 02 | B108: 16 | C108: 04 | D108: 3 | E108: POLKOWICE | F108: 25526870 | G108: 25189205 | H108: 0 | I108: 337665 | J108: 28830456 | K108: 36508161 | L108: 49727299
A109: 02 | B109: 16 | C109: 05 | D109: 3 | E109: PRZEMKÓW | F109: 13957459 | G109: 8139260 | H109: 5597691 | I109: 220508 | J109: 0 | K109: 6576837 | L109: 193481
A110: 02 | B110: 16 | C110: 06 | D110: 2 | E110: RADWANICE | F110: 5733678 | G110: 5733678 | H110: 0 | I110: 0 | J110: 184418 | K110: 5019174 | L110: 50822
A111: 02 | B111: 17 | C111: 01 | D111: 2 | E111: BORÓW | F111: 8377944 | G111: 5720843 | H111: 2657101 | I111: 0 | J111: 0 | K111: 3485342 | L111: 109876
A112: 02 | B112: 17 | C112: 02 | D112: 2 | E112: KONDRATOWICE | F112: 5827401 | G112: 4157133 | H112: 1670268 | I112: 0 | J112: 0 | K112: 2362033 | L112: 348915
A113: 02 | B113: 17 | C113: 03 | D113: 2 | E113: PRZEWORNO | F113: 7021326 | G113: 3265869 | H113: 3755457 | I113: 0 | J113: 0 | K113: 2654328 | L113: 48433
A114: 02 | B114: 17 | C114: 04 | D114: 3 | E114: STRZELIN | F114: 21801606 | G114: 21326939 | H114: 0 | I114: 474667 | J114: 0 | K114: 20137069 | L114: 3689259
A115: 02 | B115: 17 | C115: 05 | D115: 3 | E115: WIĄZÓW | F115: 12525294 | G115: 7984886 | H115: 4540408 | I115: 0 | J115: 0 | K115: 4139857 | L115: 46849
A116: 02 | B116: 18 | C116: 01 | D116: 2 | E116: KOSTOMŁOTY | F116: 11538703 | G116: 7958819 | H116: 3579884 | I116: 0 | J116: 0 | K116: 4873853 | L116: 72990
A117: 02 | B117: 18 | C117: 02 | D117: 2 | E117: MALCZYCE | F117: 8834355 | G117: 5297088 | H117: 3537267 | I117: 0 | J117: 0 | K117: 4402472 | L117: 167035
A118: 02 | B118: 18 | C118: 03 | D118: 2 | E118: MIĘKINIA | F118: 25467899 | G118: 24349729 | H118: 1118170 | I118: 0 | J118: 0 | K118: 24669593 | L118: 3406428
A119: 02 | B119: 18 | C119: 04 | D119: 3 | E119: ŚRODA ŚLĄSKA | F119: 21258705 | G119: 19400789 | H119: 1857916 | I119: 0 | J119: 0 | K119: 18691901 | L119: 7339776
A120: 02 | B120: 18 | C120: 05 | D120: 2 | E120: UDANIN | F120: 7618795 | G120: 4488108 | H120: 3130687 | I120: 0 | J120: 0 | K120: 2615271 | L120: 213764
A121: 02 | B121: 19 | C121: 01 | D121: 1 | E121: ŚWIDNICA | F121: 55290252 | G121: 55290252 | H121: 0 | I121: 0 | J121: 0 | K121: 60766019 | L121: 7270057
A122: 02 | B122: 19 | C122: 02 | D122: 1 | E122: ŚWIEBODZICE | F122: 21351870 | G122: 21351870 | H122: 0 | I122: 0 | J122: 0 | K122: 22965009 | L122: 2007594
A123: 02 | B123: 19 | C123: 03 | D123: 2 | E123: DOBROMIERZ | F123: 8806381 | G123: 6234908 | H123: 2545197 | I123: 26276 | J123: 0 | K123: 3017643 | L123: 33938
A124: 02 | B124: 19 | C124: 04 | D124: 3 | E124: JAWORZYNA ŚLĄSKA | F124: 13254819 | G124: 8578869 | H124: 4675950 | I124: 0 | J124: 0 | K124: 7401715 | L124: 177724
A125: 02 | B125: 19 | C125: 05 | D125: 2 | E125: MARCINOWICE | F125: 9865986 | G125: 6824711 | H125: 3041275 | I125: 0 | J125: 0 | K125: 4594360 | L125: 36287
A126: 02 | B126: 19 | C126: 06 | D126: 3 | E126: STRZEGOM | F126: 23737027 | G126: 23737027 | H126: 0 | I126: 0 | J126: 0 | K126: 20779248 | L126: 2321691
A127: 02 | B127: 19 | C127: 07 | D127: 2 | E127: ŚWIDNICA | F127: 23666197 | G127: 21211232 | H127: 2454965 | I127: 0 | J127: 0 | K127: 17873450 | L127: 536983
A128: 02 | B128: 19 | C128: 08 | D128: 3 | E128: ŻARÓW | F128: 11135258 | G128: 11131082 | H128: 0 | I128: 4176 | J128: 0 | K128: 10073641 | L128: 1316348
A129: 02 | B129: 20 | C129: 01 | D129: 3 | E129: OBORNIKI ŚLĄSKIE | F129: 19384704 | G129: 18934622 | H129: 450082 | I129: 0 | J129: 0 | K129: 24404711 | L129: 1503477
A130: 02 | B130: 20 | C130: 02 | D130: 3 | E130: PRUSICE | F130: 11458655 | G130: 8664560 | H130: 2794095 | I130: 0 | J130: 0 | K130: 6214776 | L130: 651444
A131: 02 | B131: 20 | C131: 03 | D131: 3 | E131: TRZEBNICA | F131: 26070556 | G131: 25870114 | H131: 0 | I131: 200442 | J131: 0 | K131: 30416375 | L131: 3040837
A132: 02 | B132: 20 | C132: 04 | D132: 2 | E132: WISZNIA MAŁA | F132: 10780062 | G132: 10780062 | H132: 0 | I132: 0 | J132: 1114667 | K132: 15332509 | L132: 2230635
A133: 02 | B133: 20 | C133: 05 | D133: 2 | E133: ZAWONIA | F133: 6997194 | G133: 5674086 | H133: 1323108 | I133: 0 | J133: 0 | K133: 7724475 | L133: 118355
A134: 02 | B134: 20 | C134: 06 | D134: 3 | E134: ŻMIGRÓD | F134: 21300198 | G134: 12533254 | H134: 8566250 | I134: 200694 | J134: 0 | K134: 10277490 | L134: 458098
A135: 02 | B135: 21 | C135: 01 | D135: 1 | E135: BOGUSZÓW-GORCE | F135: 21754513 | G135: 8854670 | H135: 12784370 | I135: 115473 | J135: 0 | K135: 9334363 | L135: 229581
A136: 02 | B136: 21 | C136: 02 | D136: 1 | E136: JEDLINA-ZDRÓJ | F136: 6553688 | G136: 4094401 | H136: 2423155 | I136: 36132 | J136: 0 | K136: 3218314 | L136: 47058
A137: 02 | B137: 21 | C137: 03 | D137: 1 | E137: SZCZAWNO-ZDRÓJ | F137: 3828106 | G137: 3828106 | H137: 0 | I137: 0 | J137: 0 | K137: 7283362 | L137: 1093783
A138: 02 | B138: 21 | C138: 04 | D138: 2 | E138: CZARNY BÓR | F138: 7026630 | G138: 6029013 | H138: 972378 | I138: 25239 | J138: 0 | K138: 3823268 | L138: 529752
A139: 02 | B139: 21 | C139: 05 | D139: 3 | E139: GŁUSZYCA | F139: =G139+H139+I139 -> 11744422 | G139: 4655458 | H139: 6944275 | I139: 144689 | J139: 0 | K139: 5067081 | L139: 143377
A140: 02 | B140: 21 | C140: 06 | D140: 3 | E140: MIEROSZÓW | F140: 8845097 | G140: 6511624 | H140: 2263563 | I140: 69910 | J140: 0 | K140: 4232041 | L140: 251315
A141: 02 | B141: 21 | C141: 07 | D141: 2 | E141: STARE BOGACZOWICE | F141: 6308698 | G141: 3427037 | H141: 2881661 | I141: 0 | J141: 0 | K141: 3492799 | L141: 9666
A142: 02 | B142: 21 | C142: 08 | D142: 2 | E142: WALIM | F142: 6679277 | G142: 5120137 | H142: 1502386 | I142: 56754 | J142: 0 | K142: 4257695 | L142: 61552
A143: 02 | B143: 22 | C143: 01 | D143: 3 | E143: BRZEG DOLNY | F143: 13539172 | G143: 13508446 | H143: 0 | I143: 30726 | J143: 0 | K143: 15770991 | L143: 2527633
A144: 02 | B144: 22 | C144: 02 | D144: 2 | E144: WIŃSKO | F144: 14859198 | G144: 7252251 | H144: 7594609 | I144: 12338 | J144: 0 | K144: 5061348 | L144: 64757
A145: 02 | B145: 22 | C145: 03 | D145: 3 | E145: WOŁÓW | F145: 28968966 | G145: 18654583 | H145: 10219428 | I145: 94955 | J145: 0 | K145: 18373728 | L145: 610778
A146: 02 | B146: 23 | C146: 01 | D146: 2 | E146: CZERNICA | F146: 28688473 | G146: 28688473 | H146: 0 | I146: 0 | J146: 0 | K146: 31403326 | L146: 603010
A147: 02 | B147: 23 | C147: 02 | D147: 2 | E147: DŁUGOŁĘKA | F147: 56986986 | G147: 56986986 | H147: 0 | I147: 0 | J147: 0 | K147: 63717542 | L147: 5330539
A148: 02 | B148: 23 | C148: 03 | D148: 2 | E148: JORDANÓW ŚLĄSKI | F148: 4739064 | G148: 3626643 | H148: 1112421 | I148: 0 | J148: 0 | K148: 2411512 | L148: 205603
A149: 02 | B149: 23 | C149: 04 | D149: 3 | E149: KĄTY WROCŁAWSKIE | F149: 32488447 | G149: 32488447 | H149: 0 | I149: 0 | J149: 4819645 | K149: 43598764 | L149: 11260162
A150: 02 | B150: 23 | C150: 05 | D150: 2 | E150: KOBIERZYCE | F150: 33769154 | G150: 33769154 | H150: 0 | I150: 0 | J150: 35281708 | K150: 61312353 | L150: 20486893
A151: 02 | B151: 23 | C151: 06 | D151: 2 | E151: MIETKÓW | F151: 4536595 | G151: 3637570 | H151: 899025 | I151: 0 | J151: 0 | K151: 2848456 | L151: 52487
A152: 02 | B152: 23 | C152: 07 | D152: 3 | E152: SOBÓTKA | F152: 17091381 | G152: 15852686 | H152: 1109268 | I152: 129427 | J152: 0 | K152: 12075327 | L152: 1211699
A153: 02 | B153: 23 | C153: 08 | D153: 3 | E153: SIECHNICE | F153: 34224183 | G153: 34224183 | H153: 0 | I153: 0 | J153: 3104146 | K153: 45883126 | L153: 4340795
A154: 02 | B154: 23 | C154: 09 | D154: 2 | E154: ŻÓRAWINA | F154: 15845462 | G154: 14951616 | H154: 893846 | I154: 0 | J154: 0 | K154: 17440543 | L154: 1169151
A155: 02 | B155: 24 | C155: 01 | D155: 3 | E155: BARDO | F155: 5296150 | G155: 4036049 | H155: 1248417 | I155: 11684 | J155: 0 | K155: 3788884 | L155: 1016551
A156: 02 | B156: 24 | C156: 02 | D156: 2 | E156: CIEPŁOWODY | F156: 3556779 | G156: 2525246 | H156: 1031533 | I156: 0 | J156: 0 | K156: 1836899 | L156: 73790
A157: 02 | B157: 24 | C157: 03 | D157: 3 | E157: KAMIENIEC ZĄBKOWICKI | F157: 8556454 | G157: 5674325 | H157: 2882129 | I157: 0 | J157: 0 | K157: 6368130 | L157: 59037
A158: 02 | B158: 24 | C158: 04 | D158: 2 | E158: STOSZOWICE | F158: 8654465 | G158: 4532580 | H158: 4121885 | I158: 0 | J158: 0 | K158: 3395554 | L158: 32092
A159: 02 | B159: 24 | C159: 05 | D159: 3 | E159: ZĄBKOWICE ŚLĄSKIE | F159: 20010931 | G159: 17970740 | H159: 1868025 | I159: 172166 | J159: 0 | K159: 18835295 | L159: 2054122
A160: 02 | B160: 24 | C160: 06 | D160: 3 | E160: ZIĘBICE | F160: 24595980 | G160: 12371264 | H160: 12191493 | I160: 33223 | J160: 0 | K160: 9759452 | L160: 438485
A161: 02 | B161: 24 | C161: 07 | D161: 3 | E161: ZŁOTY STOK | F161: 7274838 | G161: 3647317 | H161: 3598835 | I161: 28686 | J161: 0 | K161: 2856118 | L161: 54448
A162: 02 | B162: 25 | C162: 01 | D162: 1 | E162: ZAWIDÓW | F162: 5580874 | G162: 3621771 | H162: 1959103 | I162: 0 | J162: 0 | K162: 3619364 | L162: 44792
A163: 02 | B163: 25 | C163: 02 | D163: 1 | E163: ZGORZELEC | F163: 29904165 | G163: 26320321 | H163: 3583844 | I163: 0 | J163: 0 | K163: 31619859 | L163: 3305443
A164: 02 | B164: 25 | C164: 03 | D164: 3 | E164: BOGATYNIA | F164: 19727346 | G164: 19675059 | H164: 0 | I164: 52287 | J164: 10152060 | K164: 22441816 | L164: 12440812
A165: 02 | B165: 25 | C165: 04 | D165: 3 | E165: PIEŃSK | F165: 12030915 | G165: 5749407 | H165: 6237632 | I165: 43876 | J165: 0 | K165: 4946872 | L165: 92660
A166: 02 | B166: 25 | C166: 05 | D166: 2 | E166: SULIKÓW | F166: 5762174 | G166: 4665167 | H166: 1097007 | I166: 0 | J166: 0 | K166: 3872248 | L166: 525120
A167: 02 | B167: 25 | C167: 06 | D167: 3 | E167: WĘGLINIEC | F167: 12259154 | G167: 7899485 | H167: 4324388 | I167: 35281 | J167: 0 | K167: 4837258 | L167: 470677
A168: 02 | B168: 25 | C168: 07 | D168: 2 | E168: ZGORZELEC | F168: 8169769 | G168: 6577460 | H168: 1592309 | I168: 0 | J168: 0 | K168: 6461668 | L168: 215807
A169: 02 | B169: 26 | C169: 01 | D169: 1 | E169: WOJCIESZÓW | F169: 5392209 | G169: 3491028 | H169: 1901181 | I169: 0 | J169: 0 | K169: 2130533 | L169: 246616
A170: 02 | B170: 26 | C170: 02 | D170: 1 | E170: ZŁOTORYJA | F170: 13855677 | G170: 9970573 | H170: 3695689 | I170: 189415 | J170: 0 | K170: 14282381 | L170: 846886
A171: 02 | B171: 26 | C171: 03 | D171: 2 | E171: PIELGRZYMKA | F171: 7663409 | G171: 4306376 | H171: 3357033 | I171: 0 | J171: 0 | K171: 2755452 | L171: 62170
A172: 02 | B172: 26 | C172: 04 | D172: 3 | E172: ŚWIERZAWA | F172: 14047252 | G172: 7756943 | H172: 6131890 | I172: 158419 | J172: 0 | K172: 3586398 | L172: 135699
A173: 02 | B173: 26 | C173: 05 | D173: 2 | E173: ZAGRODNO | F173: 4598475 | G173: 3276071 | H173: 1322404 | I173: 0 | J173: 0 | K173: 2902377 | L173: 60851
A174: 02 | B174: 26 | C174: 06 | D174: 2 | E174: ZŁOTORYJA | F174: 8914803 | G174: 6246624 | H174: 2617427 | I174: 50752 | J174: 0 | K174: 5022160 | L174: 348268
A175: 02 | B175: 61 | C175: 01 | D175: 1 | E175: Jelenia Góra | F175: 68118956 | G175: 67127031 | H175: 991925 | I175: 0 | J175: 0 | K175: 74146189 | L175: 9754319
A176: 02 | B176: 62 | C176: 01 | D176: 1 | E176: Legnica | F176: 79428979 | G176: 79143890 | H176: 0 | I176: 285089 | J176: 0 | K176: 100396367 | L176: 17415159
A177: 02 | B177: 64 | C177: 01 | D177: 1 | E177: Wrocław | F177: 516139024 | G177: 516139024 | H177: 0 | I177: 0 | J177: 0 | K177: 1114136361 | L177: 237327272
A178: 02 | B178: 65 | C178: 01 | D178: 1 | E178: Wałbrzych | F178: 106013970 | G178: 71925717 | H178: 32594789 | I178: 1493464 | J178: 0 | K178: 84108064 | L178: 11857704
A179: 02 Suma | F179: =SUBTOTAL(9,F10:F178) -> 3142568926 | G179: =SUBTOTAL(9,G10:G178) -> 2586926345 | H179: =SUBTOTAL(9,H10:H178) -> 543369403 | I179: =SUBTOTAL(9,I10:I178) -> 12273178 | J179: =SUBTOTAL(9,J10:J178) -> 102976932 | K179: =SUBTOTAL(9,K10:K178) -> 3261029540 | L179: =SUBTOTAL(9,L10:L178) -> 580688690
A180: 04 | B180: 01 | C180: 01 | D180: 1 | E180: ALEKSANDRÓW KUJAWSKI | F180: 17413032 | G180: 11490779 | H180: 5838287 | I180: 83966 | J180: 0 | K180: 7817352 | L180: 876436
A181: 04 | B181: 01 | C181: 02 | D181: 1 | E181: CIECHOCINEK | F181: 7441587 | G181: 7096613 | H181: 344974 | I181: 0 | J181: 0 | K181: 10469443 | L181: 838433
A182: 04 | B182: 01 | C182: 03 | D182: 1 | E182: NIESZAWA | F182: 1527745 | G182: 1525888 | H182: 0 | I182: 1857 | J182: 0 | K182: 2409976 | L182: 24176
A183: 04 | B183: 01 | C183: 04 | D183: 2 | E183: ALEKSANDRÓW KUJAWSKI | F183: 18452180 | G183: 10124044 | H183: 8255207 | I183: 72929 | J183: 0 | K183: 7479171 | L183: 233121
A184: 04 | B184: 01 | C184: 05 | D184: 2 | E184: BĄDKOWO | F184: 7208135 | G184: 4461517 | H184: 2746618 | I184: 0 | J184: 0 | K184: 2195637 | L184: 31835
A185: 04 | B185: 01 | C185: 06 | D185: 2 | E185: KONECK | F185: 6422928 | G185: 4204620 | H185: 2218308 | I185: 0 | J185: 0 | K185: 1911060 | L185: 155815
A186: 04 | B186: 01 | C186: 07 | D186: 2 | E186: RACIĄŻEK | F186: 5590390 | G186: 3057006 | H186: 2457770 | I186: 75614 | J186: 0 | K186: 1745884 | L186: 14126
A187: 04 | B187: 01 | C187: 08 | D187: 2 | E187: WAGANIEC | F187: 8955571 | G187: 5217288 | H187: 3456769 | I187: 281514 | J187: 0 | K187: 2106722 | L187: 52619
A188: 04 | B188: 01 | C188: 09 | D188: 2 | E188: ZAKRZEWO | F188: 6750164 | G188: 4886715 | H188: 1639382 | I188: 224067 | J188: 0 | K188: 1248999 | L188: 24610
A189: 04 | B189: 02 | C189: 01 | D189: 1 | E189: BRODNICA | F189: 35897811 | G189: 35826471 | H189: 0 | I189: 71340 | J189: 0 | K189: 26257883 | L189: 3901648
A190: 04 | B190: 02 | C190: 02 | D190: 2 | E190: BOBROWO | F190: 15560037 | G190: 9367251 | H190: 5936116 | I190: 256670 | J190: 0 | K190: 2478245 | L190: 80775
A191: 04 | B191: 02 | C191: 03 | D191: 2 | E191: BRODNICA | F191: 14453965 | G191: 9071261 | H191: 5382704 | I191: 0 | J191: 0 | K191: 7378109 | L191: 33519
A192: 04 | B192: 02 | C192: 04 | D192: 2 | E192: BRZOZIE | F192: 8937781 | G192: 5225508 | H192: 3655955 | I192: 56318 | J192: 0 | K192: 2041330 | L192: 81255
A193: 04 | B193: 02 | C193: 05 | D193: 3 | E193: GÓRZNO | F193: 9581177 | G193: 6856890 | H193: 2724287 | I193: 0 | J193: 0 | K193: 2247558 | L193: 186388
A194: 04 | B194: 02 | C194: 06 | D194: 2 | E194: BARTNICZKA | F194: 8424024 | G194: 4639626 | H194: 3680650 | I194: 103748 | J194: 0 | K194: 2360632 | L194: 447364
A195: 04 | B195: 02 | C195: 07 | D195: 3 | E195: JABŁONOWO POMORSKIE | F195: 16938058 | G195: 9746046 | H195: 6818981 | I195: 373031 | J195: 0 | K195: 4420595 | L195: 401711
A196: 04 | B196: 02 | C196: 08 | D196: 2 | E196: OSIEK | F196: 6768058 | G196: 4282571 | H196: 2464935 | I196: 20552 | J196: 0 | K196: 1984141 | L196: 323829
A197: 04 | B197: 02 | C197: 09 | D197: 2 | E197: ŚWIEDZIEBNIA | F197: 11251684 | G197: 5105738 | H197: 5854429 | I197: 291517 | J197: 0 | K197: 2387897 | L197: 20466
A198: 04 | B198: 02 | C198: 10 | D198: 2 | E198: ZBICZNO | F198: 10514757 | G198: 5777810 | H198: 4736947 | I198: 0 | J198: 0 | K198: 3113667 | L198: 27957
A199: 04 | B199: 03 | C199: 01 | D199: 2 | E199: BIAŁE BŁOTA | F199: 37381429 | G199: 37282433 | H199: 0 | I199: 98996 | J199: 0 | K199: 35978135 | L199: 4048592
A200: 04 | B200: 03 | C200: 02 | D200: 2 | E200: DĄBROWA CHEŁMIŃSKA | F200: 14367299 | G200: 9932481 | H200: 4434818 | I200: 0 | J200: 0 | K200: 6844689 | L200: 313674
A201: 04 | B201: 03 | C201: 03 | D201: 2 | E201: DOBRCZ | F201: 21266502 | G201: 17190175 | H201: 4076327 | I201: 0 | J201: 0 | K201: 10568829 | L201: 219545
A202: 04 | B202: 03 | C202: 04 | D202: 3 | E202: KORONOWO | F202: 36571949 | G202: 23163144 | H202: 12677777 | I202: 731028 | J202: 0 | K202: 16832698 | L202: 1059832
A203: 04 | B203: 03 | C203: 05 | D203: 2 | E203: NOWA WIEŚ WIELKA | F203: =G203+H203+I203 -> 14595827 | G203: 12911758 | H203: 1684069 | I203: 0 | J203: 0 | K203: 11987278 | L203: 1513521
... 2300 more rows
